fUST/lending_fUST_20240519
["ID","MTS","AMOUNT","RATE_DAILY","PERIOD"]
[327484918,1716111047646,-500.0,0.0002026,2]
[327484920,1716111047656,-500.0,0.00020261,2]
[327484922,1716111047666,-889.33,0.00020261,2]
[327484924,1716111047675,-500.0,0.00020534,2]
[327484926,1716111047684,-500.0,0.00020534,2]
[327484928,1716111047694,-618.71,0.00020534,2]
[327484930,1716111047703,-213.95824415,0.00020534,2]
[327484932,1716111047714,-286.04175585,0.00020534,2]
[327484934,1716111047724,-500.0,0.00020535,2]
[327484936,1716111047735,-889.33,0.00020535,2]
[327484938,1716111047745,-2178.37,0.00020808,2]
[327484940,1716111047755,-405.41851531,0.00020808,2]
[327484942,1716111047764,-500.0,0.00020808,2]
[327484944,1716111047773,-601.86278405,0.00020808,2]
[327485240,1716112231931,-637.96576611,9.414e-05,2]
[327485242,1716112231943,-46.71677915,9.414e-05,2]
[327485243,1716112231952,-273.37336231,9.415e-05,2]
[327485244,1716112231962,-1136.44476732,0.0001,2]
[327485245,1716112231971,-1450.64690735,0.00014442,2]
[327485247,1716112231981,-1999.69220345,0.00014443,2]
[327485248,1716112231992,-1454.1193871,0.00014443,2]
[327485249,1716112232003,-905.41848869,0.00014443,2]
[327485264,1716112237954,-273.37336231,9.9e-05,2]
[327485265,1716112237965,-982.3318088,0.00014443,2]
[327485266,1716112237976,-10106.82367736,0.00014443,2]
[327485267,1716112237986,-274.40363321,0.000149,2]
[327485268,1716112237995,-16212.4086,0.00014907,2]
[327485269,1716112238004,-1689.27557973,0.00015,2]
[327485270,1716112238013,-1270.0,0.00016,2]
[327485271,1716112238023,-202.80911628,0.00016,2]
[327485272,1716112238032,-12394.62189875,0.000164,2]
[327485319,1716112240282,-1377.08072345,0.000164,2]
[327485321,1716112240298,-2117.63735856,0.000164,2]
[327485323,1716112240308,-500.0,0.00017647,2]
[327485324,1716112240318,-500.0,0.00017647,2]
[327485326,1716112240329,-1815.31,0.00017648,2]
[327485328,1716112240338,-500.0,0.00017648,2]
[327485330,1716112240347,-500.0,0.00017648,2]
[327485332,1716112240356,-500.0,0.00017648,2]
[327485334,1716112240366,-160.0,0.00017655,2]
[327485336,1716112240377,-500.0,0.00017921,2]
[327485337,1716112240387,-500.0,0.00017921,2]
[327485338,1716112240396,-500.0,0.00017922,2]
[327485339,1716112240405,-895.99360919,0.00018,2]
[327485340,1716112240414,-500.0,0.00018195,2]
[327485341,1716112240424,-500.0,0.00018195,2]
[327485342,1716112240434,-500.0,0.00018196,2]
[327485343,1716112240443,-320.0,0.00018202,2]
[327485344,1716112240452,-150.0,0.00018385,2]
[327485345,1716112240465,-150.0,0.00018385,3]
[327485346,1716112240474,-500.0,0.00018469,2]
[327485347,1716112240484,-500.0,0.00018469,2]
[327485348,1716112240493,-500.0,0.0001847,2]
[327485349,1716112240502,-1034.48278723,0.000185,2]
[327485350,1716112240512,-500.0,0.00018743,2]
[327485351,1716112240522,-500.0,0.00018743,2]
[327485352,1716112240532,-153.98,0.00018744,2]
[327485353,1716112240542,-522.53720072,0.00018888,2]
[327485354,1716112240552,-225.13884242,0.00018889,2]
[327485355,1716112240561,-500.0,0.00018889,2]
[327485356,1716112240570,-234.11248187,0.00018889,2]
[327485357,1716112240580,-500.0,0.00018889,2]
[327485358,1716112240590,-500.0,0.00018889,2]
[327485359,1716112240599,-500.0,0.00018889,2]
[327485360,1716112240609,-726.29,0.00018889,2]
[327485361,1716112240618,-500.0,0.00019017,2]
[327485362,1716112240627,-532.73346433,0.00019017,2]
[327485363,1716112240637,-500.0,0.00019163,2]
[327485364,1716112240646,-726.29,0.00019163,2]
[327485365,1716112240656,-255.013091,0.00019178,2]
[327485366,1716112240665,-500.0,0.00019291,2]
[327485367,1716112240675,-500.0,0.00019437,2]
[327485368,1716112240684,-726.29,0.00019437,2]
[327485369,1716112240694,-725.8587562,0.00019497,2]
[327485370,1716112240703,-500.0,0.00019565,2]
[327485371,1716112240713,-500.0,0.00019711,2]
[327485372,1716112240722,-726.29,0.00019711,2]
[327485373,1716112240732,-500.0,0.00019839,2]
[327485374,1716112240742,-305.34348314,0.00019883,2]
[327485375,1716112240751,-169.38544038,0.000199,2]
[327485376,1716112240760,-500.0,0.00019985,2]
[327485377,1716112240770,-726.29,0.00019985,2]
[327485378,1716112240780,-1815.31,0.00019999,2]
[327485379,1716112240789,-1815.31,0.00019999,2]
[327485380,1716112240798,-500.0,0.00019999,2]
[327485381,1716112240808,-507.69355596,0.00019999,2]
[327485382,1716112240817,-204.35362166,0.00019999,2]
[327485383,1716112240826,-255.4347419,0.00019999,2]
[327485384,1716112240835,-432.0,0.00019999,2]
[327485385,1716112240845,-154.84515485,0.0002,2]
[327485386,1716112240854,-12395.02087237,0.0002,2]
[327485668,1716113432114,-684.68254526,9.41e-05,2]
[327485670,1716113432123,-684.68254526,9.411e-05,2]
[327485672,1716113432132,-1136.44476732,0.0001,2]
[327485674,1716113432141,-154.82968734,0.0001,2]
[327485676,1716113432150,-250.0,0.00014998,2]
[327485678,1716113432159,-1397.1,0.00015218,2]
[327485680,1716113432168,-305.34348314,0.00016,2]
[327485681,1716113432178,-1270.0,0.00016,2]
[327485683,1716113432187,-260.87372378,0.00016338,2]
[327485685,1716113432196,-68020.40400173,0.00016436,2]
[327485687,1716113432205,-1588.39,0.00016438,2]
[327485689,1716113432215,-252.46025758,0.00016438,2]
[327485691,1716113432224,-500.0,0.00016438,2]
[327485693,1716113432233,-500.0,0.00016438,2]
[327485695,1716113432242,-500.0,0.00016438,2]
[327485697,1716113432251,-500.0,0.00016438,2]
[327485699,1716113432260,-500.0,0.00016438,2]
[327485701,1716113432269,-500.0,0.00016438,2]
[327485704,1716113432279,-500.0,0.00016438,2]
[327485706,1716113432288,-500.0,0.00016438,2]
[327485707,1716113432298,-500.0,0.00016438,2]
[327485710,1716113432307,-500.0,0.00016712,2]
[327485712,1716113432316,-500.0,0.00016712,2]
[327485715,1716113432335,-500.0,0.00016712,2]
[327485717,1716113432346,-500.0,0.00016712,2]
[327485719,1716113432355,-500.0,0.00016712,2]
[327485721,1716113432365,-214.32,0.00016712,2]
[327485723,1716113432374,-500.0,0.00016712,2]
[327485725,1716113432384,-500.0,0.00016986,2]
[327485727,1716113432394,-346.8,0.00016986,2]
[327485729,1716113432403,-500.0,0.00016986,2]
[327485731,1716113432412,-500.0,0.00016986,2]
[327485733,1716113432422,-500.0,0.0001726,2]
[327485735,1716113432431,-500.0,0.0001726,2]
[327485737,1716113432441,-188.86,0.0001726,2]
[327485739,1716113432451,-500.0,0.00017534,2]
[327485741,1716113432460,-702.4648627,0.00017645,2]
[327485743,1716113432470,-500.0,0.00017808,2]
[327485745,1716113432479,-1588.39,0.00017999,2]
[327485747,1716113432489,-895.99360919,0.00018,2]
[327485749,1716113432498,-500.0,0.00018082,2]
[327485751,1716113432507,-500.0,0.00018356,2]
[327485753,1716113432518,-150.0,0.00018443,3]
[327485755,1716113432529,-150.0,0.00018443,3]
[327485757,1716113432538,-150.0,0.00018443,2]
[327485759,1716113432547,-1034.48278723,0.000185,2]
[327485761,1716113432559,-500.0,0.0001863,2]
[327485763,1716113432569,-725.8587562,0.0001874,2]
[327485765,1716113432578,-500.0,0.00018904,2]
[327485767,1716113432588,-500.0,0.00019178,2]
[327485769,1716113432598,-290.568624,0.00019178,2]
[327485771,1716113432608,-1478.44502932,0.00019452,3]
[327485772,1716113432617,-500.0,0.00019452,2]
[327485774,1716113432627,-500.0,0.00019726,2]
[327485776,1716113432636,-150.92606734,0.00019736,2]
[327485778,1716113432646,-416.98047207,0.0001974,2]
[327485779,1716113432656,-154.84515485,0.000198,2]
[327485781,1716113432667,-660.86074843,0.00019898,2]
[327485783,1716113432677,-4221.46001999,0.00019986,2]
[327485785,1716113432686,-500.0,0.00019995,2]
[327485787,1716113432695,-500.0,0.00019995,2]
[327485789,1716113432705,-500.0,0.00019995,2]
[327485791,1716113432714,-500.0,0.00019995,2]
[327485793,1716113432723,-500.0,0.00019995,2]
[327485794,1716113432732,-500.0,0.00019995,2]
[327485795,1716113432742,-500.0,0.00019995,2]
[327485797,1716113432751,-500.0,0.00019995,2]
[327485798,1716113432762,-500.0,0.00019995,2]
[327485799,1716113432772,-500.0,0.00019995,2]
[327485800,1716113432782,-830.66,0.00019995,2]
[327485801,1716113432791,-500.0,0.00019995,2]
[327485802,1716113432801,-1681.89915885,0.00019996,2]
[327485803,1716113432811,-238.72491025,0.00019997,2]
[327485804,1716113432821,-500.0,0.00019997,2]
[327485805,1716113432832,-1884.51859878,0.00019998,2]
[327485806,1716113432842,-214.72836385,0.00019998,2]
[327485807,1716113432851,-155.04245259,0.00019998,2]
[327485808,1716113432860,-1401.61857641,0.00019998,2]
[327485809,1716113432870,-3060.26446828,0.00019998,2]
[327485810,1716113432879,-1449.41321323,0.00019999,2]
[327485811,1716113432888,-1588.39,0.00019999,2]
[327485812,1716113432897,-400.0,0.0002,2]
[327485813,1716113432907,-1565.36747024,0.0002,2]
[327485814,1716113432916,-240.34533742,0.0002,2]
[327485815,1716113432926,-241.21190449,0.0002,2]
[327485816,1716113432936,-154.84515485,0.0002,2]
[327485817,1716113432946,-1666.88413876,0.0002,2]
[327485866,1716113442322,-273.37336231,9.9e-05,2]
[327485867,1716113442332,-202.18442365,0.00016438,2]
[327485868,1716113442343,-297.81557635,0.00016438,2]
[327485869,1716113442352,-114.83918707,0.00016712,2]
[327486175,1716113446308,-385.16081293,0.00016712,2]
[327486176,1716113446318,-288.2118729,0.000198,2]
[327486177,1716113446328,-500.0,0.00019995,2]
[327486178,1716113446338,-684.68254526,0.00019999,2]
[327486179,1716113446348,-1173.4604615,0.0002,2]
[327486348,1716114638837,-1043.36646651,9.295e-05,2]
[327486349,1716114638848,-684.68254526,9.298e-05,2]
[327486350,1716114638860,-327.793188,9.396e-05,2]
[327486351,1716114638870,-1136.44476732,0.0001,2]
[327486352,1716114638879,-154.84515485,0.0001,2]
[327486353,1716114638888,-641.94,0.00010959,2]
[327486354,1716114638897,-7210.22372891,0.00012315,2]
[327486366,1716114640887,-684.68254526,9.294e-05,2]
[327486368,1716114640897,-358.60711108,0.00012315,2]
[327486369,1716114640984,-3865.363186,0.00012315,2]
[327486370,1716114640996,-13465.80597401,0.00012315,2]
[327486371,1716114641006,-48177.88198616,0.00015,2]
[327486372,1716114641017,-7790.70280962,0.00015,2]
[327486373,1716114641028,-6635.34953042,0.00015,2]
[327486395,1716114644378,-632.50000025,9.201e-05,2]
[327486397,1716114644493,-52.18254501,9.201e-05,2]
[327486398,1716114644503,-5008.52876143,0.00015,2]
[327486445,1716115458017,-464.00462424,0.0003,30]
[327486446,1716115458043,-298.23461589,0.0003,120]
[327486447,1716115458065,-315.6216,0.00030936,30]
[327486448,1716115458092,-1206.55213744,0.00032642,30]
[327486456,1716115525277,464.00462424,0.0003,30]
[327486457,1716115547190,464.00462424,0.0003,30]
[327486459,1716115565191,464.00462424,0.0003,30]
[327486460,1716115570048,5000.0,0.00034576,30]
[327486461,1716115578478,1190.91555498,0.00034576,30]
[327486462,1716115583201,464.00462424,0.0003,30]
[327486463,1716115605188,464.00462424,0.0003,30]
[327486464,1716115623188,464.00462424,0.0003,30]
[327486465,1716115643221,534.9210977,0.0003,30]
[327486466,1716115739120,168.67,0.00033576,120]
[327486565,1716115834517,-684.68254526,9.477e-05,2]
[327486566,1716115834528,-818.41026377,9.478e-05,2]
[327486567,1716115834538,-316.21456791,9.479e-05,2]
[327486568,1716115834548,-1043.36646651,9.48e-05,2]
[327486570,1716115834558,-1449.37554546,0.0001,2]
[327486571,1716115834568,-377.28759977,0.0001,2]
[327486572,1716115834581,-759.15716755,0.0001,2]
[327486573,1716115834591,-250.0,0.00013699,2]
[327486574,1716115834601,-154.82968734,0.0001451,2]
[327486575,1716115834610,-61.80314511,0.00015,2]
[327486680,1716115840615,-1312.76042057,0.00015,2]
[327486681,1716115840626,-1786.35657289,0.00015,2]
[327486683,1716115840639,-1270.0,0.00016434,2]
[327486684,1716115840652,-292.42639699,0.00016435,2]
[327486685,1716115840666,-409.51691661,0.00016435,2]
[327486686,1716115840678,-1225.79,0.00016435,2]
[327486687,1716115840690,-284.88862026,0.00016435,2]
[327486688,1716115840702,-365.45198966,0.00016436,2]
[327486689,1716115840714,-248.8690108,0.00016436,2]
[327486690,1716115840726,-704.0616487,0.00016436,2]
[327486691,1716115840737,-332.01253487,0.00016436,2]
[327486692,1716115840747,-68020.40400173,0.00016436,2]
[327486693,1716115840759,-502.07362199,0.00016437,2]
[327486694,1716115840771,-16705.14342811,0.00016437,2]
[327486695,1716115840782,-500.0,0.00016438,2]
[327486696,1716115840794,-500.0,0.00016438,2]
[327486697,1716115840804,-500.0,0.00016438,2]
[327486698,1716115840816,-500.0,0.00016438,2]
[327486699,1716115840828,-500.0,0.00016438,2]
[327486700,1716115840840,-500.0,0.00016438,2]
[327486701,1716115840852,-1389.84,0.00016438,2]
[327486702,1716115840863,-201.88651667,0.00016438,2]
[327486703,1716115840874,-913.24,0.00016438,2]
[327486704,1716115840885,-500.0,0.00016438,2]
[327486705,1716115840898,-500.0,0.00016438,2]
[327486706,1716115840911,-500.0,0.00016438,2]
[327486707,1716115840922,-500.0,0.00016438,2]
[327486708,1716115840935,-500.0,0.00016438,2]
[327486709,1716115840945,-500.0,0.00016438,2]
[327486710,1716115840957,-500.0,0.00016438,2]
[327486711,1716115840968,-150.02,0.00016438,2]
[327486712,1716115840978,-705.68113976,0.00016612,2]
[327486713,1716115840990,-739.22251466,0.00016712,3]
[327486714,1716115841000,-640.57,0.00016712,2]
[327486715,1716115841011,-500.0,0.00016712,2]
[327486716,1716115841023,-500.0,0.00016712,2]
[327486717,1716115841034,-913.24,0.00016712,2]
[327486718,1716115841046,-500.0,0.00016712,2]
[327486719,1716115841057,-156.79,0.00016712,2]
[327486720,1716115841068,-500.0,0.00016712,2]
[327486721,1716115841079,-274.06,0.00016712,2]
[327486722,1716115841090,-500.0,0.00016986,2]
[327486723,1716115841101,-913.24,0.00016986,2]
[327486724,1716115841111,-500.0,0.00016986,2]
[327486725,1716115841120,-500.0,0.0001726,2]
[327486726,1716115841130,-913.24,0.0001726,2]
[327486727,1716115841140,-500.0,0.0001726,2]
[327486728,1716115841156,-500.0,0.00017534,2]
[327486729,1716115841168,-913.24,0.00017534,2]
[327486730,1716115841178,-500.0,0.00017534,2]
[327486731,1716115841188,-1968.71808881,0.000176,2]
[327486732,1716115841200,-419.89552961,0.00017808,2]
[327486733,1716115841211,-913.24,0.00017808,2]
[327486734,1716115841222,-500.0,0.00017808,2]
[327486735,1716115841232,-705.68113973,0.00017934,2]
[327486736,1716115841243,-895.99360919,0.00018,2]
[327486737,1716115841254,-913.24,0.00018082,2]
[327486738,1716115841265,-500.0,0.00018082,2]
[327486739,1716115841275,-913.24,0.00018356,2]
[327486740,1716115841288,-500.0,0.00018356,2]
[327486741,1716115841300,-150.0,0.00018436,3]
[327486742,1716115841312,-150.0,0.00018436,2]
[327486743,1716115841323,-1098.87322976,0.000185,2]
[327486744,1716115841334,-913.24,0.0001863,2]
[327486745,1716115841346,-581.06967292,0.0001863,2]
[327486746,1716115841356,-913.24,0.00018904,2]
[327486747,1716115841367,-913.24,0.00019178,2]
[327486748,1716115841376,-276.040192,0.00019178,2]
[327486749,1716115841386,-705.68113973,0.00019255,2]
[327486750,1716115841398,-913.24,0.00019452,2]
[327486751,1716115841407,-365.64251078,0.00019725,2]
[327486752,1716115841418,-212.70941993,0.00019725,2]
[327486753,1716115841428,-217.58295256,0.00019725,2]
[327486754,1716115841438,-913.24,0.00019726,2]
[327486755,1716115841450,-184.53295606,0.00019799,2]
[327486756,1716115841461,-1407.23420979,0.0002,2]
[327486757,1716115841472,-241.21190449,0.0002,2]
[327486758,1716115841483,-1565.36747024,0.0002,2]
[327486759,1716115841493,-240.34533742,0.0002,2]
[327486760,1716115841505,-154.82968734,0.0002,2]
[327486761,1716115841515,-400.0,0.0002,2]
[327486762,1716115841524,-200.0,0.0002,2]
[327486763,1716115841534,-913.24,0.0002,2]
[327486764,1716115841545,-913.24,0.00020273,2]
[327486765,1716115841555,-913.24,0.00020547,2]
[327486766,1716115841566,-705.68113973,0.00020577,2]
[327486767,1716115841576,-1389.84,0.00020659,2]
[327486768,1716115841587,-3616.64281813,0.0002066,7]
[327486769,1716115841597,-152.153991,0.0002066,2]
[327486770,1716115841608,-151.0,0.0002066,2]
[327486771,1716115841619,-151.0,0.0002066,2]
[327486772,1716115841629,-151.0,0.0002066,2]
[327486773,1716115841639,-151.0,0.0002066,2]
[327486774,1716115841650,-151.0,0.0002066,2]
[327486775,1716115841660,-151.0,0.0002066,2]
[327486776,1716115841670,-151.0,0.0002066,2]
[327486777,1716115841680,-151.0,0.0002066,2]
[327486778,1716115841690,-151.0,0.0002066,2]
[327486779,1716115841700,-151.0,0.0002066,2]
[327486780,1716115841710,-161.108921,0.0002066,2]
[327486781,1716115841721,-161.108921,0.0002066,2]
[327486782,1716115841731,-151.0,0.0002066,2]
[327486783,1716115841741,-151.0,0.0002066,2]
[327486784,1716115841751,-151.0,0.0002066,2]
[327486785,1716115841761,-151.0,0.0002066,2]
[327486786,1716115841772,-280.00351,0.0002066,2]
[327486787,1716115841782,-280.00351,0.0002066,2]
[327486788,1716115841792,-364.718086,0.0002066,2]
[327486789,1716115841803,-364.718086,0.0002066,2]
[327486790,1716115841813,-151.0,0.0002066,2]
[327486791,1716115841824,-151.0,0.0002066,2]
[327486792,1716115841834,-151.0,0.0002066,2]
[327486793,1716115841844,-214.069106,0.0002066,2]
[327486794,1716115841854,-675.680736,0.0002066,2]
[327486795,1716115841864,-675.680736,0.0002066,2]
[327486796,1716115841875,-151.0,0.0002066,2]
[327486797,1716115841886,-437.795603,0.0002066,2]
[327486798,1716115841897,-437.795603,0.0002066,2]
[327486799,1716115841907,-151.0,0.0002066,2]
[327486800,1716115841918,-363.367208,0.0002066,2]
[327486801,1716115841928,-151.0,0.0002066,2]
[327486802,1716115841938,-363.367208,0.0002066,2]
[327486803,1716115841948,-167.9934,0.0002066,2]
[327486804,1716115841959,-151.583268,0.0002066,2]
[327486805,1716115841969,-151.583268,0.0002066,2]
[327486806,1716115841980,-151.0,0.0002066,2]
[327486807,1716115841990,-151.0,0.0002066,2]
[327486808,1716115842000,-281.0,0.000208,2]
[327486809,1716115842011,-151.0,0.000208,2]
[327486810,1716115842021,-160.0,0.000208,2]
[327486811,1716115842031,-274.31417067,0.00020807,2]
[327486812,1716115842041,-151.0,0.00020808,2]
[327486813,1716115842051,-151.0,0.00020808,2]
[327486814,1716115842061,-151.0,0.00020808,2]
[327486815,1716115842210,-151.0,0.00020808,2]
[327486816,1716115842220,-151.0,0.00020808,2]
[327486817,1716115842232,-151.0,0.00020808,2]
[327486818,1716115842242,-151.0,0.00020808,2]
[327486819,1716115842251,-231.737692,0.00020808,2]
[327486820,1716115842260,-237.956748,0.00020808,2]
[327486821,1716115842270,-161.108921,0.00020808,2]
[327486822,1716115842280,-161.108921,0.00020808,2]
[327486823,1716115842290,-193.36933,0.00020808,2]
[327486824,1716115842299,-151.516715,0.00020808,2]
[327486825,1716115842308,-151.0,0.00020808,2]
[327486826,1716115842319,-151.0,0.00020808,2]
[327486827,1716115842328,-151.0,0.00020808,2]
[327486828,1716115842337,-151.0,0.00020808,2]
[327486829,1716115842346,-675.680736,0.00020808,2]
[327486830,1716115842355,-675.680736,0.00020808,2]
[327486831,1716115842365,-151.0,0.00020808,2]
[327486832,1716115842374,-437.795603,0.00020808,2]
[327486833,1716115842383,-437.795603,0.00020808,2]
[327486834,1716115842394,-151.0,0.00020808,2]
[327486835,1716115842403,-158.238483,0.00020821,2]
[327486836,1716115842412,-151.0,0.00020821,2]
[327486837,1716115842421,-151.0,0.00020821,2]
[327486838,1716115842431,-151.0,0.00020821,2]
[327486839,1716115842440,-151.353288,0.00020821,2]
[327486840,1716115842449,-913.24,0.00020821,2]
[327486841,1716115842459,-363.367208,0.00020821,2]
[327486842,1716115842468,-286.656144,0.00020821,2]
[327486843,1716115842477,-363.367208,0.00020821,2]
[327486844,1716115842487,-151.583268,0.00020821,2]
[327486845,1716115842496,-151.583268,0.00020821,2]
[327486846,1716115842505,-151.0,0.00020821,2]
[327486847,1716115842514,-1857.55354334,0.00020911,2]
[327486848,1716115842523,-280.00351,0.00020912,2]
[327486849,1716115842532,-280.00351,0.00020912,2]
[327486850,1716115842542,-364.718086,0.00020912,2]
[327486851,1716115842551,-1389.84,0.00020912,2]
[327486852,1716115842560,-364.718086,0.00020912,2]
[327486853,1716115842569,-10448.86120355,0.00020913,2]
[327486854,1716115842579,-154.84515485,0.00020913,2]
[327486855,1716115842588,-151.0,0.00020913,2]
[327486856,1716115842598,-151.0,0.00020913,2]
[327486857,1716115842607,-151.0,0.00020913,2]
[327486858,1716115842616,-189.058971,0.00020913,2]
[327486859,1716115842625,-151.0,0.00020913,2]
[327486860,1716115842635,-151.0,0.00020913,2]
[327486861,1716115842645,-161.108921,0.00020913,2]
[327486862,1716115842654,-161.108921,0.00020913,2]
[327486863,1716115842663,-154.047456,0.00020913,2]
[327486864,1716115842673,-151.0,0.00020913,2]
[327486865,1716115842683,-151.0,0.00020913,2]
[327486866,1716115842693,-151.0,0.00020913,2]
[327486867,1716115842702,-280.00351,0.00020913,2]
[327486868,1716115842712,-280.00351,0.00020913,2]
[327486869,1716115842721,-364.718086,0.00020913,2]
[327486870,1716115842730,-364.718086,0.00020913,2]
[327486871,1716115842740,-151.0,0.00020913,2]
[327486872,1716115842749,-151.0,0.00020913,2]
[327486873,1716115842759,-151.0,0.00020913,2]
[327486874,1716115842768,-675.680736,0.00020913,2]
[327486875,1716115842778,-675.680736,0.00020913,2]
[327486876,1716115842787,-151.0,0.00020913,2]
[327486877,1716115842796,-437.795603,0.00020913,2]
[327486878,1716115842806,-437.795603,0.00020913,2]
[327486879,1716115842816,-151.0,0.00020913,2]
[327486880,1716115842826,-363.367208,0.00020913,2]
[327486881,1716115842835,-363.367208,0.00020913,2]
[327486882,1716115842846,-151.583268,0.00020913,2]
[327486883,1716115842855,-151.583268,0.00020913,2]
[327486884,1716115842864,-151.0,0.00020913,2]
[327486885,1716115842874,-280.0,0.00021,2]
[327486886,1716115842884,-913.24,0.00021095,2]
[327486887,1716115842894,-913.24,0.00021369,2]
[327486888,1716115842903,-913.24,0.00021643,2]
[327486889,1716115842914,-705.68113973,0.00021898,2]
[327486890,1716115842923,-913.24,0.00021917,2]
[327486891,1716115842933,-166.666666,0.00021918,2]
[327486892,1716115842942,-29708.42456813,0.00021997,3]
[327486893,1716115842951,-280.90448,0.00021997,2]
[327486894,1716115842960,-151.0,0.00021997,2]
[327486895,1716115842970,-280.00351,0.00021997,2]
[327486896,1716115842979,-280.00351,0.00021997,2]
[327486897,1716115842988,-364.718086,0.00021997,2]
[327486898,1716115842998,-1389.84,0.00021997,2]
[327486899,1716115843007,-1389.84,0.00021997,2]
[327486900,1716115843018,-1389.84,0.00021997,2]
[327486901,1716115843027,-1389.84,0.00021997,2]
[327486902,1716115843037,-1389.84,0.00021997,2]
[327486903,1716115843046,-1389.84,0.00021997,2]
[327486904,1716115843055,-1389.84,0.00021997,2]
[327486905,1716115843065,-1389.84,0.00021997,2]
[327486906,1716115843074,-1389.84,0.00021997,2]
[327486908,1716115843084,-364.718086,0.00021997,2]
[327486910,1716115843094,-151.0,0.00021997,2]
[327486911,1716115843103,-151.0,0.00021997,2]
[327486912,1716115843113,-675.680736,0.00021997,2]
[327486913,1716115843122,-675.680736,0.00021997,2]
[327486914,1716115843132,-151.0,0.00021997,2]
[327486915,1716115843144,-437.795603,0.00021997,2]
[327486916,1716115843158,-437.795603,0.00021997,2]
[327486917,1716115843167,-151.0,0.00021997,2]
[327486918,1716115843176,-363.367208,0.00021997,2]
[327486919,1716115843185,-363.367208,0.00021997,2]
[327486920,1716115843195,-363.367208,0.00021997,2]
[327486921,1716115843205,-363.367208,0.00021997,2]
[327486922,1716115843214,-151.583268,0.00021997,2]
[327486923,1716115843223,-151.583268,0.00021997,2]
[327486926,1716115843232,-151.583268,0.00021997,2]
[327486929,1716115843242,-151.583268,0.00021997,2]
[327486932,1716115843251,-151.0,0.00021997,2]
[327486934,1716115843261,-151.0,0.00021997,2]
[327486937,1716115843270,-312952.6640992,0.00021998,2]
[327486939,1716115843280,-164.030602,0.00021998,2]
[327486942,1716115843289,-151.0,0.00021998,2]
[327486944,1716115843299,-151.0,0.00021998,2]
[327486945,1716115843308,-151.0,0.00021998,2]
[327486946,1716115843317,-151.0,0.00021998,2]
[327486947,1716115843326,-168.744616,0.00021998,2]
[327486948,1716115843336,-151.0,0.00021998,2]
[327486949,1716115843345,-151.0,0.00021998,2]
[327486950,1716115843354,-161.108921,0.00021998,2]
[327486951,1716115843364,-161.108921,0.00021998,2]
[327486952,1716115843373,-161.108921,0.00021998,2]
[327486953,1716115843383,-161.108921,0.00021998,2]
[327486954,1716115843392,-280.00351,0.00021998,2]
[327486955,1716115843402,-280.00351,0.00021998,2]
[327486956,1716115843413,-364.718086,0.00021998,2]
[327486957,1716115843423,-364.718086,0.00021998,2]
[327486958,1716115843432,-151.0,0.00021998,2]
[327486960,1716115843442,-151.0,0.00021998,2]
[327486962,1716115843451,-675.680736,0.00021998,2]
[327486964,1716115843460,-675.680736,0.00021998,2]
[327486966,1716115843471,-151.0,0.00021998,2]
[327486968,1716115843481,-437.795603,0.00021998,2]
[327486969,1716115843490,-437.795603,0.00021998,2]
[327486970,1716115843500,-151.0,0.00021998,2]
[327486973,1716115843510,-363.367208,0.00021998,2]
[327486977,1716115843520,-363.367208,0.00021998,2]